[Event "Titled Tuesday Blitz May 9 Late 2023"]
[White "Martinez Alcantara, Jose Eduardo"]
[Black "Sun, Rick"]
[WhiteFideId "3805662"]
[BlackFideId "30909481"]
[WhiteElo "2711"]
[BlackElo "2169"]
[Result "1-0"]
[Round "02"]
[TimeControl "180+2"]
[Date "2023.05.09"]
[WhiteClock "0:00:27"]
[BlackClock "0:00:04"]

1. e4 {[%clk 0:03:00]}  d6 {[%clk 0:02:58]} 2. d4 {[%clk 0:02:59]}  Nf6 {[%clk 0:02:58]} 3. Bd3 {[%clk 0:02:58]}  e5 {[%clk 0:02:58]} 4. c3 {[%clk 0:02:57]}  Nc6 {[%clk 0:02:57]} 5. Nf3 {[%clk 0:02:53]}  Bg4 {[%clk 0:02:36]} 6. Be3 {[%clk 0:02:42]}  d5 {[%clk 0:02:25]} 7. Nbd2 {[%clk 0:02:09]}  exd4 {[%clk 0:02:14]} 8. cxd4 {[%clk 0:02:10]}  dxe4 {[%clk 0:02:13]} 9. Nxe4 {[%clk 0:02:11]}  Bb4+ {[%clk 0:01:56]} 10. Nc3 {[%clk 0:02:11]}  Bxf3 {[%clk 0:01:43]} 11. Qxf3 {[%clk 0:02:11]}  Nxd4 {[%clk 0:01:23]} 12. Qxb7 {[%clk 0:02:07]}  Rb8 {[%clk 0:01:11]} 13. Qxa7 {[%clk 0:01:53]}  Nc6 {[%clk 0:00:41]} 14. Qa4 {[%clk 0:01:51]}  O-O {[%clk 0:00:22]} 15. Rd1 {[%clk 0:01:45]}  Qe8 {[%clk 0:00:19]} 16. O-O {[%clk 0:01:43]}  Ne5 {[%clk 0:00:16]} 17. Qc2 {[%clk 0:01:40]}  Bd6 {[%clk 0:00:14]} 18. Bd4 {[%clk 0:01:26]}  Rb4 {[%clk 0:00:10]} 19. Bxe5 {[%clk 0:01:22]}  Qxe5 {[%clk 0:00:11]} 20. g3 {[%clk 0:01:22]}  Rh4 {[%clk 0:00:06]} 21. Rfe1 {[%clk 0:01:10]}  Qg5 {[%clk 0:00:04]} 22. Be2 {[%clk 0:01:11]}  Rh6 {[%clk 0:00:03]} 23. Ne4 {[%clk 0:01:07]}  Qf5 {[%clk 0:00:02]} 24. Nxf6+ {[%clk 0:01:05]}  Qxf6 {[%clk 0:00:03]} 25. Bd3 {[%clk 0:01:00]}  Rb8 {[%clk 0:00:02]} 26. b3 {[%clk 0:01:00]}  g6 {[%clk 0:00:03]} 27. Re3 {[%clk 0:00:54]}  Kg7 {[%clk 0:00:03]} 28. Qe2 {[%clk 0:00:54]}  Rb4 {[%clk 0:00:03]} 29. Bc4 {[%clk 0:00:53]}  Rh5 {[%clk 0:00:04]} 30. Rdd3 {[%clk 0:00:51]}  Rf5 {[%clk 0:00:03]} 31. Rf3 {[%clk 0:00:51]}  Bc5 {[%clk 0:00:03]} 32. Rxf5 {[%clk 0:00:51]}  Qxf5 {[%clk 0:00:04]} 33. Rf3 {[%clk 0:00:51]}  Qb1+ {[%clk 0:00:04]} 34. Kg2 {[%clk 0:00:52]}  f5 {[%clk 0:00:04]} 35. Qe5+ {[%clk 0:00:52]}  Kh6 {[%clk 0:00:05]} 36. Qxc5 {[%clk 0:00:52]}  Rb6 {[%clk 0:00:05]} 37. Qe3+ {[%clk 0:00:52]}  Kg7 {[%clk 0:00:05]} 38. Qd4+ {[%clk 0:00:53]}  Kh6 {[%clk 0:00:05]} 39. Rf4 {[%clk 0:00:53]}  g5 {[%clk 0:00:04]} 40. Rf3 {[%clk 0:00:36]}  Rd6 {[%clk 0:00:05]} 41. Qe5 {[%clk 0:00:33]}  Rd1 {[%clk 0:00:04]} 42. Qf6+ {[%clk 0:00:31]}  Kh5 {[%clk 0:00:04]} 43. Bf7+ {[%clk 0:00:29]}  Kg4 {[%clk 0:00:04]} 44. h3# {[%clk 0:00:27]} 1-0


[Site "https://www.chess.com"]

[Event "Titled Tuesday Blitz May 9 Late 2023"]
[White "Filgueira, Hernan"]
[Black "Bortnyk, Mykola"]
[WhiteFideId "101770"]
[BlackFideId "14120836"]
[WhiteElo "2363"]
[BlackElo "2582"]
[Result "0-1"]
[Round "02"]
[TimeControl "180+2"]
[Date "2023.05.09"]
[WhiteClock "0:00:11"]
[BlackClock "0:00:13"]

1. c4 {[%clk 0:02:59]}  g6 {[%clk 0:02:58]} 2. Nc3 {[%clk 0:02:58]}  Bg7 {[%clk 0:02:58]} 3. g3 {[%clk 0:02:58]}  h5 {[%clk 0:02:53]} 4. h4 {[%clk 0:02:57]}  c5 {[%clk 0:02:51]} 5. Bg2 {[%clk 0:02:56]}  Nh6 {[%clk 0:02:51]} 6. e3 {[%clk 0:02:55]}  d6 {[%clk 0:02:50]} 7. Nge2 {[%clk 0:02:55]}  Nc6 {[%clk 0:02:49]} 8. Nf4 {[%clk 0:02:50]}  O-O {[%clk 0:02:45]} 9. d3 {[%clk 0:02:48]}  Rb8 {[%clk 0:02:41]} 10. Rb1 {[%clk 0:02:44]}  Bd7 {[%clk 0:02:38]} 11. Qd2 {[%clk 0:02:43]}  a6 {[%clk 0:02:36]} 12. b3 {[%clk 0:02:42]}  b5 {[%clk 0:02:29]} 13. Bb2 {[%clk 0:02:41]}  bxc4 {[%clk 0:02:24]} 14. dxc4 {[%clk 0:02:41]}  Ne5 {[%clk 0:02:21]} 15. O-O {[%clk 0:02:36]}  Bc6 {[%clk 0:02:00]} 16. Bxc6 {[%clk 0:02:27]}  Nxc6 {[%clk 0:02:01]} 17. Ncd5 {[%clk 0:02:27]}  Ne5 {[%clk 0:01:50]} 18. f3 {[%clk 0:02:22]}  Nf5 {[%clk 0:01:46]} 19. Kg2 {[%clk 0:02:18]}  e6 {[%clk 0:01:42]} 20. Nc3 {[%clk 0:02:16]}  Qc7 {[%clk 0:01:33]} 21. Ne4 {[%clk 0:02:05]}  Rfd8 {[%clk 0:01:23]} 22. Bc3 {[%clk 0:02:04]}  d5 {[%clk 0:01:19]} 23. cxd5 {[%clk 0:01:57]}  exd5 {[%clk 0:01:19]} 24. Ng5 {[%clk 0:01:29]}  d4 {[%clk 0:01:05]} 25. exd4 {[%clk 0:01:28]}  cxd4 {[%clk 0:01:06]} 26. Ba5 {[%clk 0:01:26]}  Ne3+ {[%clk 0:01:06]} 27. Qxe3 {[%clk 0:01:18]}  Qxa5 {[%clk 0:01:04]} 28. Qf2 {[%clk 0:01:11]}  d3 {[%clk 0:00:57]} 29. Rfd1 {[%clk 0:01:08]}  Rbc8 {[%clk 0:00:56]} 30. Rd2 {[%clk 0:01:00]}  Rc2 {[%clk 0:00:40]} 31. Rbd1 {[%clk 0:00:58]}  Rdc8 {[%clk 0:00:32]} 32. Ne4 {[%clk 0:00:50]}  Qxa2 {[%clk 0:00:29]} 33. Nd5 {[%clk 0:00:37]}  Qa3 {[%clk 0:00:23]} 34. Qa7 {[%clk 0:00:27]}  Rd8 {[%clk 0:00:15]} 35. Qb7 {[%clk 0:00:18]}  Rxd2+ {[%clk 0:00:15]} 36. Rxd2 {[%clk 0:00:17]}  Qa5 {[%clk 0:00:14]} 37. b4 {[%clk 0:00:16]}  Qxd5 {[%clk 0:00:14]} 38. Qxd5 {[%clk 0:00:15]}  Rxd5 {[%clk 0:00:15]} 39. Nc5 {[%clk 0:00:15]}  Bf8 {[%clk 0:00:14]} 40. Nxa6 {[%clk 0:00:11]}  Nc4 {[%clk 0:00:13]} 0-1


[Site "https://www.chess.com"]

[Event "Titled Tuesday Blitz May 9 Late 2023"]
[White "Abdrlauf, Elham"]
[Black "Piesik, Piotr"]
[WhiteFideId "1533533"]
[BlackFideId "1136194"]
[WhiteElo "2466"]
[BlackElo "2299"]
[Result "1-0"]
[Round "02"]
[TimeControl "180+2"]
[Date "2023.05.09"]
[WhiteClock "0:00:04"]
[BlackClock "0:00:10"]

1. e4 {[%clk 0:03:00]}  c6 {[%clk 0:02:58]} 2. d4 {[%clk 0:03:00]}  d5 {[%clk 0:02:59]} 3. Nc3 {[%clk 0:03:01]}  dxe4 {[%clk 0:02:58]} 4. Nxe4 {[%clk 0:03:02]}  Nd7 {[%clk 0:02:59]} 5. Nf3 {[%clk 0:03:02]}  Ngf6 {[%clk 0:02:59]} 6. Nxf6+ {[%clk 0:03:03]}  Nxf6 {[%clk 0:02:59]} 7. Be3 {[%clk 0:03:03]}  Bg4 {[%clk 0:02:57]} 8. Be2 {[%clk 0:03:03]}  e6 {[%clk 0:02:56]} 9. O-O {[%clk 0:03:03]}  Bd6 {[%clk 0:02:56]} 10. h3 {[%clk 0:03:04]}  Bxf3 {[%clk 0:02:56]} 11. Bxf3 {[%clk 0:03:05]}  O-O {[%clk 0:02:56]} 12. c4 {[%clk 0:03:05]}  Qc7 {[%clk 0:02:55]} 13. Qe2 {[%clk 0:03:03]}  Rad8 {[%clk 0:02:51]} 14. Rfd1 {[%clk 0:03:03]}  Bf4 {[%clk 0:02:51]} 15. b4 {[%clk 0:02:54]}  Bxe3 {[%clk 0:02:50]} 16. Qxe3 {[%clk 0:02:55]}  Rd7 {[%clk 0:02:45]} 17. a4 {[%clk 0:02:52]}  Rfd8 {[%clk 0:02:45]} 18. b5 {[%clk 0:02:52]}  h6 {[%clk 0:02:37]} 19. bxc6 {[%clk 0:02:43]}  bxc6 {[%clk 0:02:37]} 20. Rab1 {[%clk 0:02:44]}  Rd6 {[%clk 0:02:30]} 21. a5 {[%clk 0:02:28]}  Qxa5 {[%clk 0:02:26]} 22. c5 {[%clk 0:02:28]}  Nd5 {[%clk 0:02:19]} 23. Qb3 {[%clk 0:01:21]}  R6d7 {[%clk 0:02:17]} 24. Ra1 {[%clk 0:01:21]}  Qc7 {[%clk 0:02:14]} 25. Rdb1 {[%clk 0:01:16]}  Nf4 {[%clk 0:02:06]} 26. Qa4 {[%clk 0:01:05]}  Rxd4 {[%clk 0:01:59]} 27. Qxc6 {[%clk 0:01:05]}  Qxc6 {[%clk 0:01:49]} 28. Bxc6 {[%clk 0:01:05]}  Rc8 {[%clk 0:01:49]} 29. Bf3 {[%clk 0:00:59]}  Rxc5 {[%clk 0:01:47]} 30. Rxa7 {[%clk 0:01:00]}  Rf5 {[%clk 0:01:43]} 31. Kh2 {[%clk 0:00:43]}  Rd2 {[%clk 0:01:42]} 32. Rb8+ {[%clk 0:00:40]}  Kh7 {[%clk 0:01:42]} 33. Be4 {[%clk 0:00:40]}  Rxf2 {[%clk 0:01:29]} 34. Bxf5+ {[%clk 0:00:17]}  exf5 {[%clk 0:01:30]} 35. Kg3 {[%clk 0:00:17]}  Rf1 {[%clk 0:01:14]} 36. Rxf7 {[%clk 0:00:17]}  Kg6 {[%clk 0:01:09]} 37. Rfb7 {[%clk 0:00:13]}  Ne2+ {[%clk 0:01:07]} 38. Kh2 {[%clk 0:00:13]}  f4 {[%clk 0:01:06]} 39. Rg8 {[%clk 0:00:10]}  Ng3 {[%clk 0:01:01]} 40. Rbxg7+ {[%clk 0:00:07]}  Kf5 {[%clk 0:00:45]} 41. Rxg3 {[%clk 0:00:01]}  fxg3+ {[%clk 0:00:45]} 42. Kxg3 {[%clk 0:00:01]}  Ra1 {[%clk 0:00:45]} 43. Kh4 {[%clk 0:00:01]}  Ra6 {[%clk 0:00:24]} 44. Kh5 {[%clk 0:00:01]}  Kf4 {[%clk 0:00:24]} 45. g3+ {[%clk 0:00:01]}  Kf3 {[%clk 0:00:22]} 46. h4 {[%clk 0:00:02]}  Rb6 {[%clk 0:00:21]} 47. Rg6 {[%clk 0:00:02]}  Rxg6 {[%clk 0:00:13]} 48. Kxg6 {[%clk 0:00:03]}  Kxg3 {[%clk 0:00:13]} 49. h5 {[%clk 0:00:04]}  Kf4 {[%clk 0:00:11]} 50. Kxh6 {[%clk 0:00:05]}  Kf5 {[%clk 0:00:10]} 51. Kg7 {[%clk 0:00:04]} 1-0


[Site "https://www.chess.com"]

[Event "Titled Tuesday Blitz May 9 Late 2023"]
[White "MKlose11"]
[Black "Pranav, V"]
[BlackFideId "25060783"]
[WhiteElo "2608"]
[BlackElo "2515"]
[Result "0-1"]
[Round "02"]
[TimeControl "180+2"]
[Date "2023.05.09"]
[WhiteClock "0:00:31"]
[BlackClock "0:01:45"]

1. e4 {[%clk 0:03:00]}  e5 {[%clk 0:02:58]} 2. Nf3 {[%clk 0:03:00]}  Nc6 {[%clk 0:02:58]} 3. d4 {[%clk 0:03:01]}  exd4 {[%clk 0:02:58]} 4. Bc4 {[%clk 0:03:01]}  Nf6 {[%clk 0:02:58]} 5. O-O {[%clk 0:03:01]}  Nxe4 {[%clk 0:02:57]} 6. Re1 {[%clk 0:03:02]}  d5 {[%clk 0:02:57]} 7. Bxd5 {[%clk 0:03:02]}  Qxd5 {[%clk 0:02:58]} 8. Nc3 {[%clk 0:03:03]}  Qa5 {[%clk 0:02:58]} 9. Nxe4 {[%clk 0:03:03]}  Be6 {[%clk 0:02:58]} 10. Neg5 {[%clk 0:03:03]}  O-O-O {[%clk 0:02:57]} 11. Nxe6 {[%clk 0:03:03]}  fxe6 {[%clk 0:02:58]} 12. Rxe6 {[%clk 0:03:03]}  Bd6 {[%clk 0:02:59]} 13. Qe2 {[%clk 0:03:03]}  Qd5 {[%clk 0:02:58]} 14. Bg5 {[%clk 0:02:50]}  Rdf8 {[%clk 0:02:53]} 15. Qe4 {[%clk 0:02:50]}  Qb5 {[%clk 0:02:38]} 16. Bc1 {[%clk 0:02:27]}  a5 {[%clk 0:02:29]} 17. a4 {[%clk 0:02:18]}  Qh5 {[%clk 0:02:26]} 18. h3 {[%clk 0:02:17]}  Kd7 {[%clk 0:02:21]} 19. Bd2 {[%clk 0:02:11]}  Rxf3 {[%clk 0:02:17]} 20. gxf3 {[%clk 0:01:47]}  Qxh3 {[%clk 0:02:15]} 21. Rxd6+ {[%clk 0:01:45]}  cxd6 {[%clk 0:02:15]} 22. Re1 {[%clk 0:01:39]}  Rf8 {[%clk 0:02:14]} 23. Qg4+ {[%clk 0:01:33]}  Qxg4+ {[%clk 0:02:14]} 24. fxg4 {[%clk 0:01:34]}  Ne5 {[%clk 0:02:14]} 25. Kg2 {[%clk 0:01:26]}  Nxg4 {[%clk 0:02:13]} 26. Re2 {[%clk 0:01:22]}  b6 {[%clk 0:02:12]} 27. Be1 {[%clk 0:01:22]}  Ne5 {[%clk 0:02:11]} 28. b3 {[%clk 0:00:47]}  d3 {[%clk 0:01:58]} 29. cxd3 {[%clk 0:00:40]}  Nxd3 {[%clk 0:01:59]} 30. Kg3 {[%clk 0:00:38]}  Re8 {[%clk 0:01:45]} 31. Rxe8 {[%clk 0:00:34]}  Kxe8 {[%clk 0:01:46]} 32. Bc3 {[%clk 0:00:35]}  g6 {[%clk 0:01:46]} 33. b4 {[%clk 0:00:32]}  axb4 {[%clk 0:01:45]} 34. Bd4 {[%clk 0:00:31]}  b3 {[%clk 0:01:45]} 0-1


[Site "https://www.chess.com"]

[Event "Titled Tuesday Blitz May 9 Late 2023"]
[White "Hjartarson, Johann"]
[Black "Terry, Renato"]
[WhiteFideId "2300044"]
[BlackFideId "3803457"]
[WhiteElo "2407"]
[BlackElo "2575"]
[Result "1/2-1/2"]
[Round "02"]
[TimeControl "180+2"]
[Date "2023.05.09"]
[WhiteClock "0:00:45"]
[BlackClock "0:00:40"]

1. e4 {[%clk 0:03:00]}  e6 {[%clk 0:03:00]} 2. d4 {[%clk 0:03:00]}  d5 {[%clk 0:02:58]} 3. e5 {[%clk 0:03:00]}  c5 {[%clk 0:02:58]} 4. c3 {[%clk 0:03:00]}  Qb6 {[%clk 0:02:58]} 5. Nf3 {[%clk 0:03:00]}  Bd7 {[%clk 0:02:58]} 6. Bd3 {[%clk 0:03:00]}  cxd4 {[%clk 0:02:58]} 7. Nxd4 {[%clk 0:02:58]}  Nc6 {[%clk 0:02:58]} 8. Nxc6 {[%clk 0:02:57]}  bxc6 {[%clk 0:02:58]} 9. O-O {[%clk 0:02:57]}  c5 {[%clk 0:02:58]} 10. c4 {[%clk 0:02:57]}  Ne7 {[%clk 0:02:58]} 11. Nc3 {[%clk 0:02:56]}  Bc6 {[%clk 0:02:58]} 12. Qe2 {[%clk 0:02:54]}  Rd8 {[%clk 0:02:51]} 13. b3 {[%clk 0:02:49]}  h6 {[%clk 0:02:45]} 14. f4 {[%clk 0:02:47]}  d4 {[%clk 0:02:44]} 15. Ne4 {[%clk 0:02:46]}  Nf5 {[%clk 0:02:40]} 16. Bd2 {[%clk 0:02:37]}  Be7 {[%clk 0:02:39]} 17. Rae1 {[%clk 0:02:35]}  h5 {[%clk 0:02:37]} 18. g3 {[%clk 0:02:31]}  Qa6 {[%clk 0:02:31]} 19. Bc1 {[%clk 0:02:27]}  Ba8 {[%clk 0:02:31]} 20. Rf2 {[%clk 0:02:09]}  Qc6 {[%clk 0:02:30]} 21. Bd2 {[%clk 0:01:51]}  Bb7 {[%clk 0:02:28]} 22. h3 {[%clk 0:01:45]}  Ra8 {[%clk 0:02:22]} 23. Rh2 {[%clk 0:01:37]}  a5 {[%clk 0:02:16]} 24. a4 {[%clk 0:01:25]}  Kd7 {[%clk 0:02:02]} 25. Qf2 {[%clk 0:01:22]}  Kc7 {[%clk 0:02:02]} 26. Ng5 {[%clk 0:01:15]}  Rhf8 {[%clk 0:01:42]} 27. Be4 {[%clk 0:01:14]}  Qb6 {[%clk 0:01:42]} 28. Qf3 {[%clk 0:01:11]}  Bxe4 {[%clk 0:01:40]} 29. Nxe4 {[%clk 0:01:10]}  g6 {[%clk 0:01:35]} 30. g4 {[%clk 0:01:07]}  Nh4 {[%clk 0:01:35]} 31. Qd3 {[%clk 0:01:06]}  Rab8 {[%clk 0:01:30]} 32. Rb1 {[%clk 0:01:05]}  Kb7 {[%clk 0:01:30]} 33. Be1 {[%clk 0:01:04]}  Rh8 {[%clk 0:01:28]} 34. Bxh4 {[%clk 0:01:03]}  Bxh4 {[%clk 0:01:28]} 35. g5 {[%clk 0:01:03]}  Rhd8 {[%clk 0:01:23]} 36. Re2 {[%clk 0:01:02]}  Ka7 {[%clk 0:01:23]} 37. Nd6 {[%clk 0:00:59]}  Rd7 {[%clk 0:01:21]} 38. Nb5+ {[%clk 0:00:57]}  Ka6 {[%clk 0:01:21]} 39. Rd1 {[%clk 0:00:52]}  Rbd8 {[%clk 0:01:21]} 40. Nd6 {[%clk 0:00:51]}  Rb8 {[%clk 0:01:20]} 41. Rb1 {[%clk 0:00:49]}  Rbd8 {[%clk 0:01:20]} 42. Rd1 {[%clk 0:00:49]}  Ka7 {[%clk 0:01:14]} 43. Qf3 {[%clk 0:00:48]}  Rb8 {[%clk 0:01:11]} 44. Nb5+ {[%clk 0:00:48]}  Ka6 {[%clk 0:01:11]} 45. Rd3 {[%clk 0:00:48]}  Rbd8 {[%clk 0:01:08]} 46. Qe4 {[%clk 0:00:47]}  Rb8 {[%clk 0:00:57]} 47. Kg2 {[%clk 0:00:47]}  Rbd8 {[%clk 0:00:57]} 48. Kf3 {[%clk 0:00:47]}  Rb8 {[%clk 0:00:57]} 49. Kg2 {[%clk 0:00:45]}  Rbd8 {[%clk 0:00:57]} 50. Kf3 {[%clk 0:00:46]}  Re7 {[%clk 0:00:49]} 51. Kg2 {[%clk 0:00:45]}  Rb8 {[%clk 0:00:40]} 52. Kf3 {[%clk 0:00:45]}  Rd7 {[%clk 0:00:40]} 53. Kg2 {[%clk 0:00:45]} 1/2-1/2


[Site "https://www.chess.com"]

[Event "Titled Tuesday Blitz May 9 Late 2023"]
[White "Matlakov, Maxim"]
[Black "Kourkoulos-Arditis, Stamatis"]
[WhiteFideId "4168003"]
[BlackFideId "4221990"]
[WhiteElo "2666"]
[BlackElo "2400"]
[Result "1-0"]
[Round "02"]
[TimeControl "180+2"]
[Date "2023.05.09"]
[WhiteClock "0:02:45"]
[BlackClock "0:00:21"]

1. e4 {[%clk 0:03:00]}  c5 {[%clk 0:02:57]} 2. Nf3 {[%clk 0:03:00]}  e6 {[%clk 0:02:56]} 3. c3 {[%clk 0:02:59]}  Nf6 {[%clk 0:02:46]} 4. Bd3 {[%clk 0:02:59]}  d5 {[%clk 0:02:45]} 5. e5 {[%clk 0:02:59]}  Nfd7 {[%clk 0:02:44]} 6. Bc2 {[%clk 0:02:59]}  Nc6 {[%clk 0:02:39]} 7. d4 {[%clk 0:02:59]}  Be7 {[%clk 0:02:27]} 8. O-O {[%clk 0:02:58]}  b6 {[%clk 0:02:16]} 9. Re1 {[%clk 0:02:58]}  a5 {[%clk 0:02:07]} 10. Nbd2 {[%clk 0:02:57]}  Ba6 {[%clk 0:02:06]} 11. Nf1 {[%clk 0:02:57]}  Qc7 {[%clk 0:01:57]} 12. Ng3 {[%clk 0:02:57]}  h5 {[%clk 0:01:57]} 13. h4 {[%clk 0:02:56]}  cxd4 {[%clk 0:01:37]} 14. cxd4 {[%clk 0:02:57]}  O-O-O {[%clk 0:01:37]} 15. Bg5 {[%clk 0:02:56]}  f6 {[%clk 0:01:20]} 16. exf6 {[%clk 0:02:54]}  gxf6 {[%clk 0:01:21]} 17. Bd2 {[%clk 0:02:54]}  e5 {[%clk 0:01:13]} 18. Rc1 {[%clk 0:02:51]}  e4 {[%clk 0:01:03]} 19. Nxe4 {[%clk 0:02:52]}  dxe4 {[%clk 0:00:57]} 20. Bxe4 {[%clk 0:02:53]}  Nc5 {[%clk 0:00:35]} 21. Bxc6 {[%clk 0:02:47]}  Nd3 {[%clk 0:00:21]} 22. Bb7+ {[%clk 0:02:45]} 1-0


[Site "https://www.chess.com"]

[Event "Titled Tuesday Blitz May 9 Late 2023"]
[White "Makarian, Rudik"]
[Black "Ismagilov, Damir"]
[WhiteFideId "44105681"]
[BlackFideId "34199982"]
[WhiteElo "2461"]
[BlackElo "2143"]
[Result "1-0"]
[Round "02"]
[TimeControl "180+2"]
[Date "2023.05.09"]
[WhiteClock "0:00:38"]
[BlackClock "0:00:00"]

1. d4 {[%clk 0:02:58]}  Nf6 {[%clk 0:02:54]} 2. c4 {[%clk 0:02:59]}  e6 {[%clk 0:02:55]} 3. Nf3 {[%clk 0:03:00]}  b6 {[%clk 0:02:54]} 4. g3 {[%clk 0:03:00]}  c6 {[%clk 0:02:55]} 5. Bg2 {[%clk 0:03:00]}  d5 {[%clk 0:02:56]} 6. O-O {[%clk 0:03:01]}  Be7 {[%clk 0:02:56]} 7. Nc3 {[%clk 0:03:02]}  O-O {[%clk 0:02:56]} 8. Nd2 {[%clk 0:03:02]}  a5 {[%clk 0:02:56]} 9. Re1 {[%clk 0:03:02]}  Ba6 {[%clk 0:02:51]} 10. b3 {[%clk 0:02:39]}  b5 {[%clk 0:02:47]} 11. c5 {[%clk 0:02:37]}  b4 {[%clk 0:02:42]} 12. Na4 {[%clk 0:02:37]}  Nbd7 {[%clk 0:02:42]} 13. Bb2 {[%clk 0:02:35]}  Bb5 {[%clk 0:02:42]} 14. e4 {[%clk 0:02:33]}  Bxa4 {[%clk 0:02:35]} 15. bxa4 {[%clk 0:02:34]}  dxe4 {[%clk 0:02:32]} 16. Nxe4 {[%clk 0:02:34]}  Nxe4 {[%clk 0:02:26]} 17. Bxe4 {[%clk 0:02:35]}  Qc7 {[%clk 0:02:26]} 18. Qc2 {[%clk 0:02:32]}  Nf6 {[%clk 0:02:24]} 19. Bd3 {[%clk 0:02:32]}  h6 {[%clk 0:02:17]} 20. h4 {[%clk 0:02:29]}  Rad8 {[%clk 0:02:17]} 21. Bc4 {[%clk 0:02:26]}  Nd5 {[%clk 0:02:16]} 22. Re4 {[%clk 0:02:25]}  Bf6 {[%clk 0:02:16]} 23. Rae1 {[%clk 0:02:25]}  Qa7 {[%clk 0:02:11]} 24. Bb3 {[%clk 0:02:20]}  Rd7 {[%clk 0:02:07]} 25. Rg4 {[%clk 0:02:05]}  Rfd8 {[%clk 0:02:01]} 26. Bc1 {[%clk 0:01:42]}  h5 {[%clk 0:01:39]} 27. Rge4 {[%clk 0:01:40]}  Ne7 {[%clk 0:01:34]} 28. Qe2 {[%clk 0:01:07]}  Rxd4 {[%clk 0:01:13]} 29. Rxe6 {[%clk 0:00:58]}  fxe6 {[%clk 0:00:59]} 30. Bxe6+ {[%clk 0:00:59]}  Kf8 {[%clk 0:00:51]} 31. Qxh5 {[%clk 0:00:59]}  g6 {[%clk 0:00:39]} 32. Qh7 {[%clk 0:00:45]}  Bg7 {[%clk 0:00:26]} 33. Bh6 {[%clk 0:00:42]}  Ke8 {[%clk 0:00:00]} 34. Qxg7 {[%clk 0:00:38]} 1-0


[Site "https://www.chess.com"]

[Event "Titled Tuesday Blitz May 9 Late 2023"]
[White "Ibrahimli, Murad"]
[Black "Nikologorskiy, Konstantin"]
[WhiteFideId "13410229"]
[BlackFideId "24111708"]
[WhiteElo "2364"]
[BlackElo "2273"]
[Result "1-0"]
[Round "02"]
[TimeControl "180+2"]
[Date "2023.05.09"]
[WhiteClock "0:00:48"]
[BlackClock "0:00:00"]

1. e4 {[%clk 0:03:00]}  c5 {[%clk 0:03:00]} 2. Nf3 {[%clk 0:03:00]}  d6 {[%clk 0:03:01]} 3. Nc3 {[%clk 0:02:58]}  Nf6 {[%clk 0:03:01]} 4. e5 {[%clk 0:02:59]}  dxe5 {[%clk 0:02:58]} 5. Nxe5 {[%clk 0:03:00]}  e6 {[%clk 0:02:53]} 6. g3 {[%clk 0:02:58]}  Be7 {[%clk 0:02:46]} 7. Bg2 {[%clk 0:02:57]}  O-O {[%clk 0:02:47]} 8. O-O {[%clk 0:02:58]}  Qc7 {[%clk 0:02:40]} 9. Re1 {[%clk 0:02:57]}  Nbd7 {[%clk 0:02:40]} 10. Nc4 {[%clk 0:02:56]}  Nb6 {[%clk 0:02:23]} 11. Ne3 {[%clk 0:02:37]}  Bd7 {[%clk 0:02:20]} 12. a4 {[%clk 0:02:29]}  Bc6 {[%clk 0:02:19]} 13. a5 {[%clk 0:02:29]}  Nbd5 {[%clk 0:02:16]} 14. Nexd5 {[%clk 0:02:18]}  Nxd5 {[%clk 0:02:17]} 15. Nxd5 {[%clk 0:02:19]}  Bxd5 {[%clk 0:02:18]} 16. Bxd5 {[%clk 0:02:19]}  exd5 {[%clk 0:02:18]} 17. d4 {[%clk 0:02:20]}  Bf6 {[%clk 0:02:05]} 18. dxc5 {[%clk 0:02:00]}  Qxc5 {[%clk 0:02:06]} 19. Be3 {[%clk 0:02:00]}  d4 {[%clk 0:01:52]} 20. Bf4 {[%clk 0:01:59]}  d3 {[%clk 0:01:48]} 21. c3 {[%clk 0:01:47]}  Rad8 {[%clk 0:01:45]} 22. Bd2 {[%clk 0:01:46]}  Qf5 {[%clk 0:01:37]} 23. Kg2 {[%clk 0:01:43]}  Rfe8 {[%clk 0:01:29]} 24. Qf3 {[%clk 0:01:43]}  Qb5 {[%clk 0:01:19]} 25. b4 {[%clk 0:01:21]}  b6 {[%clk 0:00:56]} 26. axb6 {[%clk 0:01:19]}  axb6 {[%clk 0:00:57]} 27. Rxe8+ {[%clk 0:01:13]}  Rxe8 {[%clk 0:00:57]} 28. Ra8 {[%clk 0:01:13]}  Rd8 {[%clk 0:00:27]} 29. Qe4 {[%clk 0:00:58]}  Qd7 {[%clk 0:00:17]} 30. c4 {[%clk 0:00:50]}  h5 {[%clk 0:00:11]} 31. c5 {[%clk 0:00:47]}  bxc5 {[%clk 0:00:12]} 32. bxc5 {[%clk 0:00:48]}  Rxa8 {[%clk 0:00:09]} 33. Qxa8+ {[%clk 0:00:49]}  Kh7 {[%clk 0:00:09]} 34. Qe4+ {[%clk 0:00:48]}  g6 {[%clk 0:00:09]} 35. c6 {[%clk 0:00:48]}  Qd6 {[%clk 0:00:08]} 36. Qc4 {[%clk 0:00:48]}  Qc7 {[%clk 0:00:07]} 37. Bf4 {[%clk 0:00:48]}  Be5 {[%clk 0:00:02]} 38. Bxe5 {[%clk 0:00:48]}  Qxe5 {[%clk 0:00:03]} 39. Qxd3 {[%clk 0:00:47]}  Qc7 {[%clk 0:00:01]} 40. Qd7 {[%clk 0:00:47]}  Qe5 {[%clk 0:00:01]} 41. Qxf7+ {[%clk 0:00:46]}  Kh6 {[%clk 0:00:02]} 42. Qf4+ {[%clk 0:00:47]}  Qxf4 {[%clk 0:00:00]} 43. gxf4 {[%clk 0:00:48]} 1-0


[Site "https://www.chess.com"]